fUST/lending_fUST_20251103
["ID","MTS","AMOUNT","RATE_DAILY","PERIOD"]
[392963390,1762183841209,-8333.33,0.00044657,120]
[392963391,1762183841220,-672.05,0.00044657,120]
[392963392,1762183841231,-500.0,0.00044657,2]
[392963393,1762183841240,-748.03,0.00044657,2]
[392963394,1762183841250,-388.51,0.00044657,30]
[392963395,1762183841259,-4166.66,0.00044657,45]
[392963396,1762183841270,-2554.99,0.00044657,120]
[392963397,1762183841280,-500.0,0.00044657,2]
[392963398,1762183841290,-200.0,0.000447,120]
[392963399,1762183841300,-200.0,0.000447,120]
[392963400,1762183841311,-860.86,0.00044752,120]
[392963401,1762183841322,-200.0,0.00044762,120]
[392963402,1762183841333,-860.86,0.00044852,120]
[392963403,1762183841343,-200.0,0.000449,120]
[392963404,1762183841360,-8333.33,0.00044931,120]
[392963405,1762183841370,-672.05,0.00044931,120]
[392963406,1762183841379,-500.0,0.00044931,2]
[392963407,1762183841390,-748.03,0.00044931,2]
[392963408,1762183841402,-388.51,0.00044931,30]
[392963409,1762183841413,-4166.66,0.00044931,45]
[392963410,1762183841425,-2554.99,0.00044931,120]
[392963411,1762183841436,-471.75780266,0.00044931,2]
[392963412,1762183841448,-860.86,0.00044952,120]
[392963413,1762183841458,-1000.0,0.00045,120]
[392963414,1762183841469,-200.0,0.00045,120]
[392963415,1762183841480,-150.0,0.00045,120]
[392963416,1762183841490,-50004.82976988,0.00045,120]
[392963417,1762183841500,-2498.28076428,0.00045,120]
[392963418,1762183841510,-150.0,0.00045,120]
[392963419,1762183841520,-966.88159219,0.00045,2]
[392963420,1762183841530,-31777.8,0.00045,120]
[392963421,1762183841540,-191.13100663,0.00045,120]
[392963422,1762183841550,-861.67377415,0.00045052,120]
[392963423,1762183841560,-504.23494559,0.0004515,30]
[392963424,1762183841571,-2400.0,0.00045192,60]
[392963425,1762183841581,-250.0,0.000452,30]
[392963426,1762183841591,-250.0,0.000452,30]
[392963427,1762183841600,-8333.33,0.00045205,120]
[392963428,1762183841610,-672.05,0.00045205,120]
[392963429,1762183841620,-500.0,0.00045205,2]
[392963430,1762183841630,-748.03,0.00045205,2]
[392963431,1762183841640,-388.51,0.00045205,30]
[392963432,1762183841650,-4166.66,0.00045205,45]
[392963433,1762183841659,-2554.99,0.00045205,120]
[392963434,1762183841669,-205.23837,0.000453,120]
[392963435,1762183841679,-302.17860702,0.0004538,2]
[392963436,1762183841689,-211.12082506,0.000454,120]
[392963437,1762183841700,-807348.8952,0.00045444,30]
[392963438,1762183841711,-8333.33,0.00045479,120]
[392963439,1762183841722,-672.05,0.00045479,120]
[392963440,1762183841733,-298.10126554,0.00045479,2]
[392963441,1762183841743,-748.03,0.00045479,2]
[392963442,1762183841753,-388.51,0.00045479,30]
[392963443,1762183841763,-4166.66,0.00045479,45]
[392963444,1762183841773,-2554.99,0.00045479,120]
[392963445,1762183841783,-151.0,0.000455,120]
[392963446,1762183841793,-8333.33,0.00045753,120]
[392963447,1762183841803,-672.05,0.00045753,120]
[392963448,1762183841813,-748.03,0.00045753,2]
[392963449,1762183841823,-388.51,0.00045753,30]
[392963450,1762183841833,-4166.66,0.00045753,45]
[392963451,1762183841842,-2554.99,0.00045753,120]
[392963452,1762183841852,-3719.29,0.000458,14]
[392963453,1762183841862,-10393.49,0.00045968,2]
[392963454,1762183841872,-200.0,0.00046,120]
[392963455,1762183841882,-1382.0,0.00046,120]
[392963456,1762183841892,-8333.33,0.00046027,120]
[392963457,1762183841903,-672.05,0.00046027,120]
[392963458,1762183841912,-748.03,0.00046027,2]
[392963459,1762183841922,-388.51,0.00046027,30]
[392963460,1762183841932,-4166.66,0.00046027,45]
[392963461,1762183841941,-2554.99,0.00046027,120]
[392963462,1762183841951,-627.593149,0.00046143,2]
[392963463,1762183841960,-1471.82465697,0.00046182,28]
[392963464,1762183841970,-2400.0,0.00046288,60]
[392963465,1762183841980,-8333.33,0.00046301,120]
[392963466,1762183841990,-672.05,0.00046301,120]
[392963467,1762183842000,-748.03,0.00046301,2]
[392963468,1762183842010,-388.51,0.00046301,30]
[392963469,1762183842021,-4166.66,0.00046301,45]
[392963470,1762183842032,-2554.99,0.00046301,120]
[392963471,1762183842042,-2000.0,0.000464,120]
[392963472,1762183842051,-8333.33,0.00046575,120]
[392963473,1762183842061,-672.05,0.00046575,120]
[392963474,1762183842071,-748.03,0.00046575,2]
[392963475,1762183842081,-388.51,0.00046575,30]
[392963476,1762183842091,-4166.66,0.00046575,45]
[392963477,1762183842101,-1500.0,0.00046575,120]
[392963478,1762183842110,-1500.0,0.00046575,120]
[392963479,1762183842120,-1500.0,0.00046575,120]
[392963480,1762183842131,-1500.0,0.00046575,120]
[392963481,1762183842142,-1500.0,0.00046575,120]
[392963482,1762183842152,-1500.0,0.00046575,120]
[392963483,1762183842164,-1500.0,0.00046575,120]
[392963484,1762183842176,-1500.0,0.00046575,120]
[392963485,1762183842188,-469.92638043,0.00046575,120]
[392963486,1762183842200,-2554.99,0.00046575,120]
[392963487,1762183842211,-1478.43,0.000468,120]
[392963488,1762183842222,-8333.33,0.00046849,120]
[392963489,1762183842232,-672.05,0.00046849,120]
[392963490,1762183842243,-748.03,0.00046849,2]
[392963491,1762183842253,-388.51,0.00046849,30]
[392963492,1762183842263,-4166.66,0.00046849,45]
[392963493,1762183842273,-2554.99,0.00046849,120]
[392963494,1762183842283,-247.28754,0.00047,120]
[392963495,1762183842293,-150.0,0.00047,120]
[392963496,1762183842302,-268.98128498,0.00047,30]
[392963497,1762183842312,-150.0,0.00047,120]
[392963498,1762183842333,-229.57274,0.000471,120]
[392963499,1762183842343,-223.64375,0.000471,120]
[392963500,1762183842358,-8333.33,0.00047123,120]
[392963501,1762183842368,-672.05,0.00047123,120]
[392963502,1762183842379,-748.03,0.00047123,2]
[392963503,1762183842391,-388.51,0.00047123,30]
[392963504,1762183842402,-4166.66,0.00047123,45]
[392963505,1762183842411,-2554.99,0.00047123,120]
[392963506,1762183842421,-4648.46,0.000473,14]
[392963507,1762183842433,-200.0,0.000473,120]
[392963508,1762183842442,-200.0,0.000473,120]
[392963509,1762183842451,-200.0,0.000473,120]
[392963510,1762183842461,-200.0,0.000473,120]
[392963511,1762183842471,-200.0,0.000473,120]
[392963512,1762183842480,-200.0,0.000473,120]
[392963513,1762183842490,-10393.49,0.00047312,2]
[392963514,1762183842500,-2400.0,0.00047384,60]
[392963515,1762183842511,-8333.41,0.00047397,120]
[392963516,1762183842522,-672.19778841,0.00047397,120]
[392963517,1762183842532,-748.22037364,0.00047397,2]
[392963518,1762183842542,-388.60539635,0.00047397,30]
[392963519,1762183842552,-4166.82,0.00047397,45]
[392963520,1762183842562,-2555.187601,0.00047397,120]
[392963521,1762183842571,-578789.2669,0.00047444,30]
[392963522,1762183842581,-151.0,0.000476,120]
[392963523,1762183842591,-180.0,0.000477,120]
[392963524,1762183842600,-1000.0,0.00048,120]
[392963525,1762183842610,-19241.5950867,0.00048,120]
[392963526,1762183842619,-200.0,0.00048,120]
[392963527,1762183842628,-454.79906,0.00048,120]
[392963528,1762183842637,-150.0,0.00048,120]
[392963529,1762183842647,-378.51313,0.00048,120]
[392963530,1762183842657,-3719.29,0.00048,14]
[392963531,1762183842666,-720.0,0.00048245,90]
[392963532,1762183842675,-1156.33055905,0.00048398,120]
[392963533,1762183842685,-56619.17388595,0.000484,30]
[392963534,1762183842699,-650385.65556975,0.000484,30]
[392963535,1762183842710,-2400.0,0.0004848,60]
[392963536,1762183842720,-10393.49,0.00048656,2]
[392963537,1762183842730,-2710.12633976,0.000488,120]
[392963538,1762183842741,-2066.15743023,0.000488,120]
[392963539,1762183842750,-2000.0,0.00049,120]
[392963540,1762183842761,-399.34492119,0.00049,120]
[392963541,1762183842771,-746.02202742,0.00049,120]
[392963542,1762183842781,-2000.0,0.000494,120]
[392963543,1762183842791,-246366.07167367,0.00049444,30]
[392963553,1762183843099,-3197.18973189,0.00049444,30]
[392963558,1762183843132,-412.0,0.00039255,2]
[392963563,1762183843143,-412.0,0.00042255,2]
[392963565,1762183843153,-412.0,0.00045255,2]
[392963569,1762183843162,-412.0,0.00048255,2]
[392963573,1762183843172,-24814.36237959,0.00049444,30]
[392963577,1762183843183,-14197.06461699,0.00049444,30]
[392963618,1762183843857,-510.7241531,0.00035893,2]
[392963619,1762183843871,-415.07431893,0.00035893,2]
[392963620,1762183843895,-4074.20152797,0.00035893,2]
[392963621,1762183843909,-151.0,0.00036873,5]
[392963622,1762183843920,-151.0,0.00036928,5]
[392963623,1762183843931,-198.0,0.00036983,5]
[392963625,1762183843941,-1129.23949516,0.00049444,30]
[392963688,1762183846819,-429.46998,0.00049444,30]
[392963690,1762183846832,-15946.7496679,0.00049444,30]
[392963692,1762183846845,-730.0,0.00049444,30]
[392963694,1762183847136,-271979.1193548,0.00049444,30]
[392963695,1762183847146,-2400.0,0.00049576,60]
[392963696,1762183847156,-151.0,0.000497,120]
[392963697,1762183847166,-399.34097479,0.00049999,120]
[392963698,1762183847176,-439.25078612,0.00049999,120]
[392963699,1762183847186,-476.75318175,0.00049999,120]
[392963700,1762183847197,-850.40454461,0.0005,120]
[392963701,1762183847207,-2498.27184918,0.0005,120]
[392963702,1762183847219,-200.0,0.0005,120]
[392963703,1762183847230,-1313.56970059,0.0005,120]
[392963704,1762183847240,-551.66821125,0.0005,120]
[392963705,1762183847249,-562.41623682,0.0005,120]
[392963706,1762183847259,-256.61,0.0005,2]
[392963707,1762183847270,-100000.0005,0.0005,30]
[392963708,1762183847281,-500.0,0.0005,15]
[392963709,1762183847291,-2898.4202473,0.0005,120]
[392963710,1762183847302,-180.88025294,0.0005,120]
[392963711,1762183847314,-10000.0,0.0005,90]
[392963712,1762183847327,-49799.57157144,0.0005,120]
[392963713,1762183847338,-4648.46,0.0005,14]
[392963714,1762183847353,-2400.0,0.00050672,60]
[392963715,1762183847365,-1000.0,0.00051,120]
[392963716,1762183847379,-2000.0,0.00051,120]
[392963717,1762183847395,-150.0,0.00051,120]
[392963718,1762183847410,-1005.07597631,0.00051,2]
[392963719,1762183847423,-3000.0,0.00051,85]
[392963720,1762183847441,-3000.0,0.0005101,85]
[392963721,1762183847460,-3000.0,0.0005102,85]
[392963722,1762183847482,-3000.0,0.0005103,85]
[392963723,1762183847498,-3000.0,0.0005104,85]
[392963724,1762183847515,-3000.0,0.0005105,85]
[392963725,1762183847545,-3000.0,0.0005106,85]
[392963726,1762183847567,-3000.0,0.0005107,85]
[392963727,1762183847583,-3017.172974,0.0005108,85]
[392963728,1762183847601,-209.0,0.0005119,30]
[392963729,1762183847617,-412.0,0.00051255,120]
[392963730,1762183847633,-2400.0,0.00051768,60]
[392963731,1762183847651,-151.0,0.000518,120]
[392963732,1762183847668,-12311.26940108,0.00051858,60]
[392963733,1762183847682,-200.0,0.00052,120]
[392963734,1762183847696,-10000.0,0.00052,120]
[392963735,1762183847710,-5000.0,0.00052,2]
[392963736,1762183847724,-179803.57996053,0.00052,120]
[392963737,1762183847749,-1471.82465697,0.00052336,28]
[392963738,1762183847767,-209.0,0.0005249,30]
[392963739,1762183847783,-627.593149,0.00052632,2]
[392963740,1762183847799,-25000.0,0.000527,30]
[392963741,1762183847816,-1287.74718182,0.00052864,60]
[392963742,1762183847832,-1404.7575651,0.00053,120]
[392963743,1762183847852,-2000.0,0.00053,120]
[392963744,1762183847868,-150.0,0.00053,120]
[392963745,1762183847879,-1000.0,0.00053,120]
[392963746,1762183847893,-5394.41,0.00053,14]
[392963747,1762183847908,-864.0,0.00053069,120]
[392963748,1762183847922,-1083.49,0.000532,120]
[392963749,1762183847937,-2000.0,0.000534,120]
[392963750,1762183847956,-875.98965996,0.000535,120]
[392963751,1762183847980,-405.37940167,0.0005359,120]
[392963752,1762183847997,-209.0,0.0005379,30]
[392963753,1762183848012,-150.81971973,0.000538,120]
[392963754,1762183848027,-151.0,0.000539,120]
[392963755,1762183848041,-1000.0,0.00054,120]
[392963756,1762183848062,-200.0,0.00054,120]
[392963757,1762183848078,-1000.0,0.00054,120]
[392963758,1762183848095,-1944.7365581,0.00054,120]
[392963759,1762183848109,-5000.0,0.00054,2]
[392963760,1762183848122,-5000.0,0.00054,120]
[392963761,1762183848135,-5057.0,0.00054,120]
[392963762,1762183848153,-3000.0,0.000542,120]
[392963763,1762183848169,-412.0,0.00054255,120]
[392963764,1762183848184,-311756.41638417,0.00054444,30]
[392964279,1762184148582,1129.6332561,0.00037686,35]
[392964280,1762184232174,150.0,0.000328,120]
[392964281,1762184327457,3227.66746089,0.00037686,120]
[392964282,1762184329611,500.0,0.000328,120]
[392964283,1762184356731,300.0,0.000328,120]
[392964284,1762184361928,436.49,0.00032877,120]
[392964285,1762184374667,200.0,0.000328,120]
[392964286,1762184377569,1000.0,0.00032876,120]
[392964287,1762184395583,156.69,0.000328,120]
[392964288,1762184520352,10000.01,0.00018,2]
[392964289,1762184520377,10000.01,0.00018,2]
[392964290,1762184520402,10000.01,0.00018,2]
[392964291,1762184520426,10000.01,0.00018,2]
[392964292,1762184520450,9830.96,0.00018,2]
[392964293,1762184532918,5439.0,0.00032877,120]
[392964298,1762184692036,177.0,1.03e-06,2]
[392964300,1762184732508,169.2331236,0.00012471,2]
[392964301,1762184748145,1000.0,0.00032876,120]
[392964303,1762184837676,183.1624,0.00024,30]
[392964304,1762184844125,-374.92699803,0.00020846,2]
[392964307,1762184957096,-1364.94322243,0.00020538,2]
[392964308,1762184957119,-5000.0,0.00020638,2]
[392964309,1762184957139,-300.0,0.000208,2]
[392964310,1762184957160,-300.0,0.000208,2]
[392964311,1762184957179,-300.0,0.000208,2]
[392964312,1762184957199,-300.0,0.000208,2]
[392964313,1762184957223,-125.07300197,0.00020846,2]
[392964314,1762184957249,-150.0,0.00021322,2]
[392964315,1762184957271,-177.0,0.00023322,2]
[392964316,1762184957294,-300.0,0.00025199,2]
[392964317,1762184957315,-1200.0,0.000252,2]
[392964318,1762184957336,-202.87166129,0.000252,2]
[392964319,1762184957357,-500.0,0.000252,2]
[392964320,1762184957379,-500.0,0.000252,2]
[392964321,1762184957400,-500.0,0.000252,2]
[392964322,1762184957420,-500.0,0.000252,2]
[392964323,1762184957441,-500.0,0.000252,2]
[392964324,1762184957460,-311.55194108,0.000252,2]
[392964325,1762184957480,-500.0,0.000252,2]
[392964326,1762184957507,-500.0,0.000252,2]
[392964327,1762184957528,-500.0,0.000252,2]
[392964328,1762184957556,-500.0,0.000252,2]
[392964329,1762184957583,-500.0,0.000252,2]
[392964330,1762184957610,-500.0,0.000252,2]
[392964331,1762184957637,-262.68738643,0.000252,2]
[392964332,1762184959157,-237.31261357,0.000252,2]
[392964333,1762184959184,-500.0,0.000252,2]
[392964334,1762184959210,-500.0,0.000252,2]
[392964335,1762184959237,-500.0,0.000252,2]
[392964336,1762184959269,-376.29749065,0.000252,2]
[392964337,1762184959296,-500.0,0.000252,2]
[392964338,1762184959324,-500.0,0.000252,2]
[392964339,1762184959348,-500.0,0.000252,2]
[392964340,1762184959374,-500.0,0.000252,2]
[392964341,1762184959398,-500.0,0.000252,2]
[392964342,1762184959421,-500.0,0.000252,2]
[392964343,1762184959445,-175.71980897,0.000252,2]
[392964344,1762184959471,-500.0,0.000252,2]
[392964345,1762184959500,-500.0,0.000252,2]
[392964346,1762184959525,-500.0,0.000252,2]
[392964347,1762184959549,-447.9126034,0.000252,2]
[392964348,1762184959573,-500.0,0.000252,2]
[392964349,1762184959596,-300.0,0.00025201,2]
[392964350,1762184959618,-300.0,0.00025201,2]
[392964351,1762184959641,-977.0,0.00025201,2]
[392964352,1762184959663,-24902.57758656,0.00025201,2]
[392964353,1762184959686,-500.0,0.00025202,2]
[392964354,1762184959709,-500.0,0.00025202,2]
[392964355,1762184959737,-300.0,0.00025243,20]
[392964356,1762184959765,-300.0,0.00025243,20]
[392964357,1762184959790,-300.0,0.00025243,20]
[392964358,1762184959816,-300.0,0.00025243,20]
[392964359,1762184959842,-300.0,0.00025243,20]
[392964360,1762184959867,-300.0,0.00025243,20]
[392964361,1762184959892,-300.0,0.00025243,20]
[392964362,1762184959917,-300.0,0.00025243,20]
[392964363,1762184959943,-300.0,0.00025243,20]
[392964364,1762184959969,-300.0,0.00025243,20]
[392964365,1762184959996,-500.0,0.00025243,20]
[392964366,1762184960020,-204.0,0.00025322,2]
[392964367,1762184960044,-600.0,0.00025498,20]
[392964368,1762184960067,-300.0,0.00027293,2]
[392964369,1762184960088,-225.17689401,0.00027322,2]
[392964370,1762184960108,-247.93426446,0.00027532,2]
[392964371,1762184960131,-500.0,0.00028047,60]
[392964372,1762184960158,-249.33796425,0.00028048,30]
[392964373,1762184966090,-5000.0,0.00025069,2]
[392964374,1762184966116,-470.66203575,0.00028048,30]
[392964375,1762184966138,-451.42597024,0.00028203,2]
[392964376,1762184966164,-864.0,0.00030853,30]
[392964377,1762184968055,300.0,0.000208,2]
[392964378,1762184971254,300.0,0.000208,2]
[392964381,1762185019011,806.95992247,0.00032877,120]
[392964515,1762185031979,-150.82,0.00034805,60]
[392964518,1762185031989,-150.82,0.00034905,60]
[392964520,1762185031999,-158.0,0.00035,120]
[392964522,1762185032008,-1295.71,0.00035616,30]
[392964525,1762185032018,-5000.0,0.00035814,2]
[392964528,1762185032027,-185.659946,0.00036175,2]
[392964531,1762185032037,-168.0,0.00036398,2]
[392964534,1762185032052,-168.0,0.00036713,2]
[392964537,1762185032062,-168.0,0.00036889,2]
[392964540,1762185032073,-168.0,0.00036973,2]
[392964543,1762185032082,-1555.0,0.00037165,2]
[392964546,1762185032092,-247.93426446,0.00037183,4]
[392964549,1762185032102,-168.0,0.00037358,7]
[392964551,1762185032112,-367.95616426,0.00037393,2]
[392964554,1762185032122,-168.0,0.00037493,2]
[392964558,1762185032132,-245.83,0.00037585,60]
[392964560,1762185032140,-1000.0,0.00037685,20]
[392964563,1762185032150,-5000.0,0.00037687,20]
[392964566,1762185032159,-168.0,0.0003778,7]
[392964569,1762185032168,-168.0,0.00038004,120]
[392964572,1762185032181,-158.0,0.000382,120]
[392964574,1762185032190,-600.0,0.00038337,90]
[392964576,1762185032199,-168.0,0.0003841,2]
[392964578,1762185032209,-168.0,0.00038554,2]
[392964580,1762185032218,-168.0,0.00038665,120]
[392964582,1762185032228,-168.0,0.00038694,2]
[392964584,1762185032242,-168.0,0.0003876,2]
[392964586,1762185032252,-3937.9952004,0.00038919,2]
[392964587,1762185032261,-168.0,0.00038928,7]
[392964588,1762185032271,-168.0,0.00038951,2]
[392964589,1762185032282,-168.0,0.00039054,2]
[392964590,1762185032297,-1555.0,0.00039195,120]
[392964591,1762185032307,-168.0,0.00039264,7]
[392964592,1762185032316,-1803.89817707,0.00039772,2]
[392964593,1762185032325,-517.81977126,0.00039823,5]
[392964594,1762185032335,-168.0,0.00039837,2]
[392964595,1762185032344,-168.0,0.00039883,2]
[392964596,1762185032353,-168.0,0.00039914,2]
[392964597,1762185032363,-168.0,0.00039915,7]
[392964598,1762185032373,-168.0,0.00040008,120]
[392964599,1762185032383,-1555.0,0.00040192,7]
[392964600,1762185032392,-158.0,0.000415,120]
[392964601,1762185032402,-720.0,0.0004217,90]
[392964602,1762185032411,-367.95616424,0.0004268,28]
[392964603,1762185032420,-2000.0,0.00043,120]
[392964604,1762185032429,-682.15951389,0.00043005,2]
[392964605,1762185032439,-2728.63805556,0.00043005,2]
[392964606,1762185032448,-6133.29618939,0.00043005,2]
[392964607,1762185032458,-153.0,0.0004448,30]
[392964608,1762185032467,-153.0,0.00044508,30]
[392964609,1762185032476,-158.0,0.000447,120]
[392964610,1762185032486,-864.0,0.00046387,90]
[392964611,1762185032495,-248.18219872,0.00046834,7]
[392964612,1762185032506,-1559.0,0.00047,120]
[392964613,1762185032515,-158.0,0.000479,120]
[392964614,1762185032524,-367.95616424,0.00047966,28]
[392964615,1762185032533,-1000.0,0.00049,120]
[392964616,1762185032547,-2218.24010358,0.000502,120]
[392964617,1762185032556,-1000.0,0.00051026,120]
[392964618,1762185032566,-158.0,0.000512,120]
[392964619,1762185032576,-3000.0,0.000512,120]
[392964620,1762185032586,-1000.0,0.00052,120]
[392964621,1762185032595,-13800.04376203,0.00052,120]
[392964622,1762185032605,-3000.0,0.000522,120]
[392964623,1762185032615,-5000.0,0.000522,120]
[392964624,1762185032624,-2148.03318802,0.00052582,2]
[392964625,1762185032634,-200.0,0.00052623,120]
[392964626,1762185032643,-2148.03318802,0.00052861,2]
[392964627,1762185032653,-1000.0,0.00053,120]
[392964628,1762185032663,-1000.0,0.00053,120]
[392964629,1762185032672,-2148.03318802,0.00053123,2]
[392964630,1762185032682,-5144.80930504,0.00053134,2]
[392964631,1762185032693,-476.53,0.0005319,10]
[392964632,1762185032703,-5000.0,0.000532,120]
[392964633,1762185032716,-5000.0,0.000532,120]
[392964634,1762185032725,-3631.07903975,0.000532,2]
[392964635,1762185032735,-5144.80930501,0.00053201,2]
[392964636,1762185032744,-2148.03318802,0.00053234,2]
[392964637,1762185032755,-367.95616424,0.00053253,28]
[392964638,1762185032765,-1182.1466226,0.00053263,2]
[392964639,1762185032774,-5144.80930501,0.00053267,2]
[392964640,1762185032784,-264898.5762071,0.00053295,120]
[392964641,1762185032798,-336.17,0.000533,14]
[392964642,1762185032807,-5144.80930501,0.00053334,2]
[392964643,1762185032816,-5144.80930501,0.000534,2]
[392964644,1762185032825,-500.0,0.0005344,60]
[392964645,1762185032835,-500.0,0.0005344,60]
[392964646,1762185032844,-510.72209854,0.0005344,30]
[392964647,1762185032852,-505.19113955,0.00053473,10]
[392964648,1762185032861,-83571.48277609,0.00053495,120]
[392964649,1762185032898,-3441.0,0.00053495,120]
[392964650,1762185032909,-11201.16299201,0.00053495,120]
[392964651,1762185032920,-17278.1982299,0.00053495,120]
[392964652,1762185032931,-17707.77813061,0.00053495,120]
[392964732,1762185038704,-300.0,0.00036529,30]
[392964733,1762185038716,-1110.53267133,0.00053495,120]
[392964777,1762185039173,-22999.9995,0.00053495,120]
[392964780,1762185039186,-10633.34505429,0.00053495,120]
[392964782,1762185039198,-132056.50064577,0.00053495,120]
[392964784,1762185039208,-1487.72,0.000535,14]
[392964786,1762185039218,-1182.1466226,0.00053585,2]
[392964788,1762185039228,-2148.03318802,0.00053647,2]
[392964790,1762185039238,-2148.03318802,0.00053702,2]
[392964792,1762185039248,-1182.1466226,0.00053966,2]
[392964794,1762185039258,-16635.41844647,0.0005399,2]
[392964796,1762185039267,-1000.0,0.00054,120]
[392964798,1762185039277,-3000.0,0.00054,120]
[392964800,1762185039288,-5000.0,0.000542,120]
[392964802,1762185039302,-5000.0,0.000542,120]
[392964804,1762185039312,-2148.03318802,0.00054332,2]
[392964806,1762185039322,-663942.98184688,0.00054344,2]
[392964808,1762185039335,-21057.01815312,0.00054344,2]
[392964810,1762185039345,-10000.0,0.0005439,120]
[392964824,1762185039446,-158.0,0.000544,120]
[392964826,1762185039457,-5328.54789858,0.000544,2]
[392964828,1762185039468,-540.75,0.000544,2]
[392964830,1762185039480,-857.45285385,0.000544,2]
[392964831,1762185039490,-1182.1466226,0.00054429,2]
[392964832,1762185039500,-151.0,0.00054443,30]
[392964837,1762185039510,-151.0,0.00054443,30]
[392964839,1762185039519,-198.0,0.00054443,30]
[392964842,1762185039529,-151.0,0.00054443,30]
[392964846,1762185039539,-151.0,0.00054443,30]
[392964847,1762185039551,-198.0,0.00054443,30]
[392964850,1762185039561,-45.30762307,0.00054443,30]
[392965237,1762185042892,-500.0,0.000528,60]
[392965239,1762185042902,-263.71372374,0.00053049,2]
[392965267,1762185043132,-4736.28627626,0.00053049,2]
[392965269,1762185043143,-500.0,0.00053896,60]
[392965271,1762185043152,-105.69237693,0.00054443,30]
[392965273,1762185043162,-198.0,0.00054443,30]
[392965275,1762185043172,-151.0,0.00054443,2]
[392965277,1762185043181,-151.0,0.00054443,30]
[392965279,1762185043191,-151.0,0.00054443,30]
[392965281,1762185043200,-198.0,0.00054443,30]
[392965283,1762185043209,-151.0,0.00054443,30]
[392965287,1762185043219,-151.0,0.00054443,30]
[392965290,1762185043228,-151.0,0.00054443,30]
[392965292,1762185043238,-198.0,0.00054443,30]
[392965296,1762185043247,-151.0,0.00054443,30]
[392965299,1762185043257,-151.0,0.00054443,30]
[392965301,1762185043266,-198.0,0.00054443,30]
[392965303,1762185043276,-151.0,0.00054443,30]
[392965305,1762185043285,-151.0,0.00054443,30]
[392965307,1762185043295,-198.0,0.00054443,30]
[392965309,1762185043307,-37855.23033697,0.00054444,30]
[392965311,1762185043319,-4425.0,0.00054444,30]
[392965313,1762185043330,-407.12655677,0.00054444,30]
[392965315,1762185043342,-377.95093046,0.00054444,30]
[392965609,1762185045976,-330.0,0.00038002,2]
[392965619,1762185046065,-230.384,0.00038002,2]
[392965621,1762185046075,-412.0,0.00041002,2]
[392965623,1762185046085,-157.14937578,0.000534,120]
[392965625,1762185046095,-17225.46662422,0.00054444,30]
[392965662,1762185046411,-221309.78847578,0.00054444,30]
[392965664,1762185046421,-1798.13,0.000545,14]
[392965666,1762185046431,-162.02,0.000545,30]
[392965668,1762185046440,-2148.03318802,0.00054674,2]
[392965670,1762185046450,-1182.14662261,0.00054783,2]
[392965672,1762185046459,-500.0,0.00054794,2]
[392965674,1762185046469,-500.0,0.00054794,120]
[392965676,1762185046478,-500.0,0.00054794,3]
[392965678,1762185046487,-500.0,0.00054794,120]
[392965680,1762185046497,-500.0,0.00054794,120]
[392965682,1762185046506,-500.0,0.00054794,120]